[Event "December 5 Early 2023"]
[Site "https://www.chess.com"]
[Date "2023.12.05"]
[Round "7"]
[White "Souleidis, Georgios"]
[Black "Devaev, Alexander"]
[Result "1-0"]
[Board "74"]
[TimeControl "180+1"]
[WhiteFideId "4206827"]
[BlackFideId "4169395"]
[WhiteElo "2660"]
[BlackElo "2521"]
[WhiteTeam "GRE"]
[BlackTeam "RUS"]
[WhiteClock "0:00:02"]
[BlackClock "0:00:07"]

1. e4 {[%clk 0:03:00]}  c6 {[%clk 0:02:56]} 2. Nc3 {[%clk 0:03:00]}  d5 {[%clk 0:02:55]} 3. Nf3 {[%clk 0:03:01]}  Nf6 {[%clk 0:02:55]} 4. e5 {[%clk 0:03:01]}  Ne4 {[%clk 0:02:55]} 5. Ne2 {[%clk 0:03:00]}  e6 {[%clk 0:02:55]} 6. d3 {[%clk 0:02:54]}  Nc5 {[%clk 0:02:54]} 7. d4 {[%clk 0:02:54]}  Ncd7 {[%clk 0:02:55]} 8. Ng3 {[%clk 0:02:51]}  c5 {[%clk 0:02:55]} 9. c3 {[%clk 0:02:48]}  Nc6 {[%clk 0:02:55]} 10. Bd3 {[%clk 0:02:40]}  Qb6 {[%clk 0:02:46]} 11. Bb1 {[%clk 0:02:07]}  cxd4 {[%clk 0:02:11]} 12. cxd4 {[%clk 0:02:08]}  Bb4+ {[%clk 0:02:06]} 13. Kf1 {[%clk 0:02:08]}  Be7 {[%clk 0:01:52]} 14. h4 {[%clk 0:02:05]}  Nf8 {[%clk 0:01:48]} 15. h5 {[%clk 0:02:03]}  Bd7 {[%clk 0:01:46]} 16. Kg1 {[%clk 0:01:58]}  f6 {[%clk 0:01:30]} 17. b3 {[%clk 0:01:35]}  fxe5 {[%clk 0:00:40]} 18. dxe5 {[%clk 0:01:36]}  Bc5 {[%clk 0:00:40]} 19. Qe2 {[%clk 0:01:27]}  Ne7 {[%clk 0:00:41]} 20. Bd3 {[%clk 0:01:21]}  O-O-O {[%clk 0:00:33]} 21. Bd2 {[%clk 0:01:07]}  Kb8 {[%clk 0:00:33]} 22. b4 {[%clk 0:00:56]}  Bd4 {[%clk 0:00:24]} 23. Nxd4 {[%clk 0:00:56]}  Qxd4 {[%clk 0:00:25]} 24. Rc1 {[%clk 0:00:55]}  Nf5 {[%clk 0:00:20]} 25. Nxf5 {[%clk 0:00:37]}  exf5 {[%clk 0:00:21]} 26. Be3 {[%clk 0:00:30]}  Qg4 {[%clk 0:00:15]} 27. f3 {[%clk 0:00:23]}  Qxb4 {[%clk 0:00:16]} 28. Rb1 {[%clk 0:00:20]}  Qa4 {[%clk 0:00:16]} 29. Qf2 {[%clk 0:00:11]}  Ne6 {[%clk 0:00:07]} 30. Bxf5 {[%clk 0:00:11]}  d4 {[%clk 0:00:08]} 31. Bc1 {[%clk 0:00:10]}  Rhf8 {[%clk 0:00:06]} 32. Be4 {[%clk 0:00:10]}  Nc5 {[%clk 0:00:07]} 33. Bd5 {[%clk 0:00:08]}  Bc6 {[%clk 0:00:06]} 34. Bxc6 {[%clk 0:00:08]}  Qxc6 {[%clk 0:00:07]} 35. Rh4 {[%clk 0:00:05]}  d3 {[%clk 0:00:06]} 36. Qd2 {[%clk 0:00:03]}  Qd5 {[%clk 0:00:06]} 37. Rhb4 {[%clk 0:00:03]}  Qxe5 {[%clk 0:00:05]} 38. Bb2 {[%clk 0:00:03]}  Qd5 {[%clk 0:00:05]} 39. Bxg7 {[%clk 0:00:03]}  Rg8 {[%clk 0:00:06]} 40. Bd4 {[%clk 0:00:03]}  b6 {[%clk 0:00:06]} 41. Bxc5 {[%clk 0:00:03]}  Qxc5+ {[%clk 0:00:06]} 42. Qf2 {[%clk 0:00:02]}  Qxh5 {[%clk 0:00:06]} 43. Rxb6+ {[%clk 0:00:02]}  Ka8 {[%clk 0:00:06]} 44. Rb7 {[%clk 0:00:02]}  Qd5 {[%clk 0:00:07]} 45. Qxa7# {[%clk 0:00:02]} 1-0

[Event "December 5 Early 2023"]
[Site "https://www.chess.com"]
[Date "2023.12.05"]
[Round "7"]
[White "Ovetchkin, Roman"]
[Black "Estrada Nieto, Julian"]
[Result "0-1"]
[Board "75"]
[TimeControl "180+1"]
[WhiteFideId "4119991"]
[BlackFideId "5101018"]
[WhiteElo "2651"]
[BlackElo "2521"]
[WhiteTeam "RUS"]
[BlackTeam "ESP"]
[WhiteClock "0:00:01"]
[BlackClock "0:00:07"]

1. d4 {[%clk 0:03:00]}  d5 {[%clk 0:03:00]} 2. c4 {[%clk 0:03:00]}  dxc4 {[%clk 0:03:00]} 3. e3 {[%clk 0:03:00]}  Nf6 {[%clk 0:03:01]} 4. Bxc4 {[%clk 0:03:00]}  e6 {[%clk 0:03:01]} 5. Nf3 {[%clk 0:03:00]}  c5 {[%clk 0:03:02]} 6. O-O {[%clk 0:03:00]}  a6 {[%clk 0:03:02]} 7. dxc5 {[%clk 0:02:59]}  Bxc5 {[%clk 0:03:03]} 8. Qxd8+ {[%clk 0:02:57]}  Kxd8 {[%clk 0:03:04]} 9. Nbd2 {[%clk 0:02:53]}  Ke7 {[%clk 0:03:03]} 10. Be2 {[%clk 0:02:53]}  b5 {[%clk 0:03:02]} 11. a4 {[%clk 0:02:52]}  bxa4 {[%clk 0:02:55]} 12. Ne5 {[%clk 0:02:47]}  Bb7 {[%clk 0:02:54]} 13. Nd3 {[%clk 0:02:40]}  Nbd7 {[%clk 0:02:47]} 14. Rxa4 {[%clk 0:02:39]}  Rhc8 {[%clk 0:02:36]} 15. Nxc5 {[%clk 0:02:26]}  Nxc5 {[%clk 0:02:36]} 16. Ra5 {[%clk 0:02:21]}  Nfe4 {[%clk 0:02:15]} 17. f3 {[%clk 0:02:05]}  Nxd2 {[%clk 0:02:14]} 18. Bxd2 {[%clk 0:02:05]}  Ke8 {[%clk 0:01:59]} 19. Bc3 {[%clk 0:01:59]}  f6 {[%clk 0:01:58]} 20. e4 {[%clk 0:01:58]}  e5 {[%clk 0:01:42]} 21. Rd1 {[%clk 0:01:40]}  Rc6 {[%clk 0:01:35]} 22. Kf2 {[%clk 0:01:37]}  Rd8 {[%clk 0:01:27]} 23. Rxd8+ {[%clk 0:01:35]}  Kxd8 {[%clk 0:01:28]} 24. Ke3 {[%clk 0:01:35]}  Ne6 {[%clk 0:01:22]} 25. g3 {[%clk 0:01:15]}  Kc7 {[%clk 0:01:21]} 26. f4 {[%clk 0:01:10]}  Kb6 {[%clk 0:01:19]} 27. Ra4 {[%clk 0:00:51]}  exf4+ {[%clk 0:01:11]} 28. gxf4 {[%clk 0:00:50]}  Nc5 {[%clk 0:01:08]} 29. Bd4 {[%clk 0:00:44]}  Kc7 {[%clk 0:00:59]} 30. Ra3 {[%clk 0:00:26]}  Ne6 {[%clk 0:00:51]} 31. Bc3 {[%clk 0:00:26]}  Nc5 {[%clk 0:00:43]} 32. e5 {[%clk 0:00:20]}  Nd7 {[%clk 0:00:34]} 33. Ra5 {[%clk 0:00:09]}  fxe5 {[%clk 0:00:33]} 34. fxe5 {[%clk 0:00:09]}  Kb6 {[%clk 0:00:23]} 35. Ra4 {[%clk 0:00:08]}  Kc7 {[%clk 0:00:20]} 36. h4 {[%clk 0:00:07]}  Nc5 {[%clk 0:00:15]} 37. Rc4 {[%clk 0:00:07]}  Ne6 {[%clk 0:00:14]} 38. Rxc6+ {[%clk 0:00:06]}  Kxc6 {[%clk 0:00:14]} 39. h5 {[%clk 0:00:06]}  Bc8 {[%clk 0:00:08]} 40. Bd3 {[%clk 0:00:06]}  h6 {[%clk 0:00:08]} 41. Be4+ {[%clk 0:00:04]}  Kd7 {[%clk 0:00:07]} 42. Bf5 {[%clk 0:00:04]}  Ke7 {[%clk 0:00:07]} 43. Bd3 {[%clk 0:00:04]}  Nc5 {[%clk 0:00:06]} 44. Be2 {[%clk 0:00:05]}  Ne6 {[%clk 0:00:06]} 45. Ke4 {[%clk 0:00:05]}  Nc5+ {[%clk 0:00:06]} 46. Kd5 {[%clk 0:00:05]}  Ne6 {[%clk 0:00:06]} 47. Bb4+ {[%clk 0:00:05]}  Kd7 {[%clk 0:00:05]} 48. Ke4 {[%clk 0:00:05]}  Bb7+ {[%clk 0:00:06]} 49. Ke3 {[%clk 0:00:05]}  Bc8 {[%clk 0:00:05]} 50. Bd6 {[%clk 0:00:05]}  Nd8 {[%clk 0:00:04]} 51. Ke4 {[%clk 0:00:06]}  Ne6 {[%clk 0:00:05]} 52. Kf5 {[%clk 0:00:05]}  Ke8 {[%clk 0:00:05]} 53. Kg6 {[%clk 0:00:06]}  Nf4+ {[%clk 0:00:04]} 54. Kxg7 {[%clk 0:00:06]}  Nxe2 {[%clk 0:00:05]} 55. Kxh6 {[%clk 0:00:07]}  Be6 {[%clk 0:00:03]} 56. Kg7 {[%clk 0:00:06]}  Nf4 {[%clk 0:00:04]} 57. h6 {[%clk 0:00:07]}  Bf5 {[%clk 0:00:04]} 58. h7 {[%clk 0:00:06]}  Bxh7 {[%clk 0:00:04]} 59. Kxh7 {[%clk 0:00:07]}  Kf7 {[%clk 0:00:05]} 60. Kh6 {[%clk 0:00:07]}  Ke6 {[%clk 0:00:05]} 61. Kg5 {[%clk 0:00:08]}  Nd3 {[%clk 0:00:06]} 62. b3 {[%clk 0:00:07]}  Nxe5 {[%clk 0:00:06]} 63. Bxe5 {[%clk 0:00:07]}  Kxe5 {[%clk 0:00:06]} 64. Kg4 {[%clk 0:00:07]}  Kd4 {[%clk 0:00:07]} 65. Kf4 {[%clk 0:00:01]}  Kc3 {[%clk 0:00:07]} 0-1

[Event "December 5 Early 2023"]
[Site "https://www.chess.com"]
[Date "2023.12.05"]
[Round "7"]
[White "Krzywda, Andrzej"]
[Black "Belov, Alexei"]
[Result "1-0"]
[Board "77"]
[TimeControl "180+1"]
[WhiteFideId "1114565"]
[BlackFideId "4128206"]
[WhiteElo "2510"]
[BlackElo "2645"]
[WhiteTeam "POL"]
[BlackTeam "RUS"]
[WhiteClock "0:00:07"]
[BlackClock "0:00:15"]

1. e4 {[%clk 0:02:56]}  e6 {[%clk 0:02:59]} 2. d4 {[%clk 0:02:56]}  d5 {[%clk 0:03:00]} 3. Nc3 {[%clk 0:02:56]}  Nf6 {[%clk 0:03:00]} 4. e5 {[%clk 0:02:56]}  Ne4 {[%clk 0:03:01]} 5. Nxe4 {[%clk 0:02:50]}  dxe4 {[%clk 0:03:01]} 6. Bc4 {[%clk 0:02:48]}  a6 {[%clk 0:03:01]} 7. c3 {[%clk 0:02:47]}  b5 {[%clk 0:03:01]} 8. Bb3 {[%clk 0:02:48]}  Bb7 {[%clk 0:03:01]} 9. Ne2 {[%clk 0:02:48]}  c5 {[%clk 0:03:02]} 10. O-O {[%clk 0:02:46]}  Nc6 {[%clk 0:03:02]} 11. Be3 {[%clk 0:02:45]}  Qh4 {[%clk 0:03:02]} 12. Ng3 {[%clk 0:02:42]}  Rd8 {[%clk 0:02:52]} 13. Qe2 {[%clk 0:01:39]}  cxd4 {[%clk 0:02:47]} 14. cxd4 {[%clk 0:01:39]}  Nxd4 {[%clk 0:02:47]} 15. Bxd4 {[%clk 0:01:40]}  Rxd4 {[%clk 0:02:47]} 16. Rfd1 {[%clk 0:01:32]}  Bc5 {[%clk 0:02:23]} 17. Rac1 {[%clk 0:01:32]}  Qe7 {[%clk 0:02:01]} 18. Rxd4 {[%clk 0:01:26]}  Bxd4 {[%clk 0:02:00]} 19. Nxe4 {[%clk 0:01:26]}  Bxe5 {[%clk 0:01:30]} 20. Nc5 {[%clk 0:01:06]}  Bf4 {[%clk 0:01:27]} 21. Rc2 {[%clk 0:00:34]}  O-O {[%clk 0:01:22]} 22. Qg4 {[%clk 0:00:29]}  Bd6 {[%clk 0:00:59]} 23. Nxb7 {[%clk 0:00:26]}  Qxb7 {[%clk 0:00:59]} 24. h4 {[%clk 0:00:13]}  Rc8 {[%clk 0:00:52]} 25. h5 {[%clk 0:00:12]}  g6 {[%clk 0:00:48]} 26. hxg6 {[%clk 0:00:11]}  hxg6 {[%clk 0:00:47]} 27. Rxc8+ {[%clk 0:00:08]}  Qxc8 {[%clk 0:00:47]} 28. g3 {[%clk 0:00:08]}  Qc1+ {[%clk 0:00:43]} 29. Kg2 {[%clk 0:00:08]}  Qxb2 {[%clk 0:00:42]} 30. Bxe6 {[%clk 0:00:08]}  Qf6 {[%clk 0:00:35]} 31. Bb3 {[%clk 0:00:07]}  Bc5 {[%clk 0:00:35]} 32. Qc8+ {[%clk 0:00:06]}  Kg7 {[%clk 0:00:35]} 33. Qxc5 {[%clk 0:00:06]}  Kh7 {[%clk 0:00:27]} 34. Qd5 {[%clk 0:00:07]}  Kg7 {[%clk 0:00:27]} 35. f3 {[%clk 0:00:06]}  Qb2+ {[%clk 0:00:27]} 36. Kh3 {[%clk 0:00:06]}  Qf6 {[%clk 0:00:27]} 37. g4 {[%clk 0:00:05]}  Qf4 {[%clk 0:00:24]} 38. Kg2 {[%clk 0:00:04]}  Qf6 {[%clk 0:00:24]} 39. Kg3 {[%clk 0:00:04]}  g5 {[%clk 0:00:21]} 40. Qf5 {[%clk 0:00:04]}  Qxf5 {[%clk 0:00:20]} 41. gxf5 {[%clk 0:00:04]}  Kf6 {[%clk 0:00:20]} 42. Kg4 {[%clk 0:00:04]}  a5 {[%clk 0:00:21]} 43. Bc2 {[%clk 0:00:04]}  a4 {[%clk 0:00:20]} 44. a3 {[%clk 0:00:04]}  Ke5 {[%clk 0:00:19]} 45. Bd3 {[%clk 0:00:04]}  b4 {[%clk 0:00:18]} 46. axb4 {[%clk 0:00:04]}  a3 {[%clk 0:00:19]} 47. Bc4 {[%clk 0:00:05]}  f6 {[%clk 0:00:19]} 48. b5 {[%clk 0:00:04]}  Kd4 {[%clk 0:00:19]} 49. Be6 {[%clk 0:00:04]}  Kc5 {[%clk 0:00:19]} 50. f4 {[%clk 0:00:04]}  gxf4 {[%clk 0:00:19]} 51. Kxf4 {[%clk 0:00:05]}  Kxb5 {[%clk 0:00:19]} 52. Kg4 {[%clk 0:00:05]}  Kc5 {[%clk 0:00:19]} 53. Kh5 {[%clk 0:00:05]}  Kd4 {[%clk 0:00:16]} 54. Kg6 {[%clk 0:00:06]}  Ke5 {[%clk 0:00:16]} 55. Ba2 {[%clk 0:00:06]}  Kd4 {[%clk 0:00:14]} 56. Kxf6 {[%clk 0:00:07]}  Kc3 {[%clk 0:00:15]} 57. Ke7 {[%clk 0:00:07]}  Kb2 {[%clk 0:00:16]} 58. Be6 {[%clk 0:00:07]}  a2 {[%clk 0:00:15]} 59. Bxa2 {[%clk 0:00:07]} 1-0

[Event "December 5 Early 2023"]
[Site "https://www.chess.com"]
[Date "2023.12.05"]
[Round "7"]
[White "Goldin, Roman"]
[Black "Zhurbinsky, David"]
[Result "0-1"]
[Board "80"]
[TimeControl "180+1"]
[WhiteFideId "2803860"]
[BlackFideId "2072904"]
[WhiteElo "2441"]
[BlackElo "2615"]
[WhiteTeam "ISR"]
[BlackTeam "USA"]
[WhiteClock "0:00:00"]
[BlackClock "0:01:27"]

1. Nf3 {[%clk 0:02:59]}  Nf6 {[%clk 0:02:58]} 2. e3 {[%clk 0:02:58]}  e6 {[%clk 0:02:58]} 3. a3 {[%clk 0:02:58]}  b6 {[%clk 0:02:58]} 4. b4 {[%clk 0:02:58]}  Bb7 {[%clk 0:02:58]} 5. Bb2 {[%clk 0:02:59]}  Be7 {[%clk 0:02:57]} 6. c4 {[%clk 0:02:58]}  d6 {[%clk 0:02:57]} 7. Be2 {[%clk 0:02:59]}  Nbd7 {[%clk 0:02:57]} 8. O-O {[%clk 0:02:59]}  h6 {[%clk 0:02:56]} 9. d3 {[%clk 0:02:58]}  g5 {[%clk 0:02:55]} 10. Nc3 {[%clk 0:02:55]}  Rg8 {[%clk 0:02:54]} 11. d4 {[%clk 0:02:53]}  g4 {[%clk 0:02:53]} 12. Nd2 {[%clk 0:02:53]}  h5 {[%clk 0:02:49]} 13. e4 {[%clk 0:02:51]}  h4 {[%clk 0:02:45]} 14. Qc2 {[%clk 0:02:44]}  g3 {[%clk 0:02:42]} 15. fxg3 {[%clk 0:02:44]}  hxg3 {[%clk 0:02:42]} 16. h3 {[%clk 0:02:45]}  Nh7 {[%clk 0:02:31]} 17. e5 {[%clk 0:02:24]}  Ng5 {[%clk 0:02:30]} 18. h4 {[%clk 0:02:07]}  dxe5 {[%clk 0:02:30]} 19. hxg5 {[%clk 0:02:00]}  Bxg5 {[%clk 0:02:29]} 20. Qh7 {[%clk 0:01:31]}  Be3+ {[%clk 0:02:25]} 21. Kh1 {[%clk 0:01:31]}  Qg5 {[%clk 0:02:12]} 22. Nde4 {[%clk 0:01:16]}  Qg6 {[%clk 0:01:58]} 23. Qh4 {[%clk 0:00:55]}  Bxe4 {[%clk 0:01:53]} 24. Nxe4 {[%clk 0:00:54]}  Qxe4 {[%clk 0:01:53]} 25. Qh3 {[%clk 0:00:12]}  O-O-O {[%clk 0:01:44]} 26. Rxf7 {[%clk 0:00:06]}  Rh8 {[%clk 0:01:41]} 27. Bh5 {[%clk 0:00:06]}  exd4 {[%clk 0:01:35]} 28. Raf1 {[%clk 0:00:00]}  Qe5 {[%clk 0:01:27]} 0-1

[Event "December 5 Early 2023"]
[Site "https://www.chess.com"]
[Date "2023.12.05"]
[Round "7"]
[White "Tymrakiewicz, Rafal"]
[Black "Navarrete Mendez, Gonzalo Alberto"]
[Result "1/2-1/2"]
[Board "82"]
[TimeControl "180+1"]
[WhiteFideId "1108832"]
[BlackFideId "5106850"]
[WhiteElo "2416"]
[BlackElo "2603"]
[WhiteTeam "POL"]
[BlackTeam "MEX"]
[WhiteClock "0:01:10"]
[BlackClock "0:02:02"]

1. e4 {[%clk 0:02:56]}  e5 {[%clk 0:02:59]} 2. Nf3 {[%clk 0:02:55]}  Nc6 {[%clk 0:03:00]} 3. Bb5 {[%clk 0:02:55]}  a6 {[%clk 0:03:00]} 4. Bxc6 {[%clk 0:02:56]}  dxc6 {[%clk 0:03:01]} 5. Nc3 {[%clk 0:02:56]}  f6 {[%clk 0:02:58]} 6. d4 {[%clk 0:02:52]}  exd4 {[%clk 0:02:53]} 7. Qxd4 {[%clk 0:02:45]}  Qxd4 {[%clk 0:02:46]} 8. Nxd4 {[%clk 0:02:46]}  Bd7 {[%clk 0:02:42]} 9. h4 {[%clk 0:02:45]}  O-O-O {[%clk 0:02:42]} 10. Be3 {[%clk 0:02:44]}  Ne7 {[%clk 0:02:41]} 11. h5 {[%clk 0:02:45]}  h6 {[%clk 0:02:40]} 12. f3 {[%clk 0:02:30]}  f5 {[%clk 0:02:40]} 13. e5 {[%clk 0:02:16]}  c5 {[%clk 0:02:36]} 14. Nde2 {[%clk 0:02:13]}  Nc6 {[%clk 0:02:29]} 15. f4 {[%clk 0:02:05]}  Nb4 {[%clk 0:02:29]} 16. Rc1 {[%clk 0:02:01]}  Bc6 {[%clk 0:02:29]} 17. Kf2 {[%clk 0:02:01]}  Be7 {[%clk 0:02:12]} 18. a3 {[%clk 0:01:58]}  Nd5 {[%clk 0:02:12]} 19. Nxd5 {[%clk 0:01:58]}  Bxd5 {[%clk 0:02:13]} 20. Nc3 {[%clk 0:01:10]}  Bc6 {[%clk 0:02:02]} 1/2-1/2

[Event "December 5 Early 2023"]
[Site "https://www.chess.com"]
[Date "2023.12.05"]
[Round "7"]
[White "Buchenau, Frank"]
[Black "Dyachuk, Artem"]
[Result "0-1"]
[Board "83"]
[TimeControl "180+1"]
[WhiteFideId "4604350"]
[BlackFideId "34107924"]
[WhiteElo "2394"]
[BlackElo "2587"]
[WhiteTeam "GER"]
[BlackTeam "UKR"]
[WhiteClock "0:00:12"]
[BlackClock "0:01:17"]

1. e4 {[%clk 0:03:00]}  e5 {[%clk 0:02:53]} 2. Bc4 {[%clk 0:02:56]}  Nf6 {[%clk 0:02:49]} 3. d3 {[%clk 0:02:56]}  c6 {[%clk 0:02:46]} 4. Nf3 {[%clk 0:02:56]}  d5 {[%clk 0:02:44]} 5. Bb3 {[%clk 0:02:56]}  Bd6 {[%clk 0:02:41]} 6. exd5 {[%clk 0:02:52]}  cxd5 {[%clk 0:02:41]} 7. Bg5 {[%clk 0:02:52]}  Be6 {[%clk 0:02:38]} 8. Nc3 {[%clk 0:02:52]}  Nbd7 {[%clk 0:02:33]} 9. Bxd5 {[%clk 0:02:46]}  Bxd5 {[%clk 0:02:31]} 10. Nxd5 {[%clk 0:02:46]}  Qa5+ {[%clk 0:02:31]} 11. Nc3 {[%clk 0:02:46]}  O-O {[%clk 0:02:29]} 12. O-O {[%clk 0:02:45]}  h6 {[%clk 0:02:29]} 13. Bxf6 {[%clk 0:02:37]}  Nxf6 {[%clk 0:02:30]} 14. Ne4 {[%clk 0:02:34]}  Be7 {[%clk 0:02:28]} 15. Qd2 {[%clk 0:02:29]}  Qb6 {[%clk 0:02:24]} 16. Nxe5 {[%clk 0:02:25]}  Nxe4 {[%clk 0:02:05]} 17. dxe4 {[%clk 0:02:24]}  Qxb2 {[%clk 0:02:05]} 18. Nd3 {[%clk 0:02:16]}  Qd4 {[%clk 0:02:04]} 19. Rab1 {[%clk 0:02:13]}  b6 {[%clk 0:01:55]} 20. e5 {[%clk 0:02:13]}  Rac8 {[%clk 0:01:53]} 21. Rfe1 {[%clk 0:01:59]}  Qc4 {[%clk 0:01:50]} 22. Qe3 {[%clk 0:01:26]}  Qxc2 {[%clk 0:01:44]} 23. e6 {[%clk 0:01:26]}  Qxa2 {[%clk 0:01:30]} 24. exf7+ {[%clk 0:01:19]}  Rxf7 {[%clk 0:01:31]} 25. Ra1 {[%clk 0:01:03]}  Qd5 {[%clk 0:01:27]} 26. Ne5 {[%clk 0:00:49]}  Bc5 {[%clk 0:01:24]} 27. Qh3 {[%clk 0:00:43]}  Bxf2+ {[%clk 0:01:17]} 28. Kh1 {[%clk 0:00:42]}  Bxe1 {[%clk 0:01:18]} 29. Qxc8+ {[%clk 0:00:12]}  Rf8 {[%clk 0:01:17]} 0-1